[Event "FIDE WYCC Girls U18 2023"]
[Site "Montesilvano"]
[Date "2023.11.20"]
[Round "7.33"]
[White "Gonzalez Romo, Greshya Jocelyn"]
[Black "Chavez Echeverria, Ana Karen"]
[Result "1/2-1/2"]
[ECO "B13"]
[WhiteElo "1494"]
[BlackElo "1230"]
[Annotator "NA COMBH"]
[PlyCount "48"]
[EventDate "2023.11.13"]
[EventType "swiss"]
[EventCountry "ITA"]
[SourceTitle "playchess.com"]
[Source "ChessBase"]
[SourceQuality "1"]
[TimeControl "40/5400+30:1800+30"]

1. e4 {[%emt 0:00:04]} c6 {[%emt 0:00:09]} 2. d4 {[%emt 0:00:14]} d5 {[%emt 0:00:07]} 3. exd5 {[%emt 0:00:20]} cxd5 {[%emt 0:00:13]} 4. Bd3 {[%emt 0:00:34]} Nf6 {[%emt 0:00:22]} 5. c3 {[%emt 0:01:56]} Nc6 {[%emt 0:03:00]} 6. Bf4 {[%emt 0:02:19]} Bg4 {[%emt 0:06:21]} 7. Qb3 {[%emt 0:05:18]} Na5 {[%emt 0:03:16]} 8. Qa4+ {[%emt 0:01:19]} Bd7 {[%emt 0:02:08]} 9. Qc2 {[%emt 0:03:36]} Rc8 {[%emt 0:03:46]} 10. Nf3 {[%emt 0:03:13]} b5 {[%emt 0:09:42]} 11. Qe2 {[%emt 0:06:04]} a6 {[%emt 0:12:09]} 12. O-O {[%emt 0:01:57]} e6 {[%emt 0:02:32]} 13. Ne5 {[%emt 0:03:40]} Nc4 {[%emt 0:04:24]} 14. b4 {[%emt 0:12:40]} Be7 {[%emt 0:03:07]} 15. Bxc4 {[%emt 0:07:02]} bxc4 {[%emt 0:01:46]} 16. a4 {[%emt 0:02:50]} O-O {[%emt 0:02:15]} 17. Nd2 {[%emt 0:02:09]} Be8 {[%emt 0:10:32]} 18. Rfe1 {[%emt 0:03:20]} Nd7 {[%emt 0:04:21]} 19. Ndf3 {[%emt 0:01:50]} Nxe5 {[%emt 0:01:32]} 20. Nxe5 {[%emt 0:00:38]} Bg5 {[%emt 0:01:59]} 21. Bg3 {[%emt 0:02:29]} Bh4 {[%emt 0:01:30]} 22. Bf4 {[%emt 0:01:20]} Bg5 {[%emt 0:00:03]} 23. Bg3 {[%emt 0:02:11]} Bh4 24. Bf4 {[%emt 0:00:44]} Bg5 {[%emt 0:00:00]} 1/2-1/2

[Event "FIDE WYCC Girls U18 2023"]
[Site "Montesilvano"]
[Date "2023.11.20"]
[Round "7.34"]
[White "Wolf, Elena"]
[Black "Galli, Maria Vittoria"]
[Result "*"]
[ECO "C50"]
[WhiteElo "1195"]
[BlackElo "1452"]
[Annotator "NA COMBH"]
[PlyCount "60"]
[EventDate "2023.11.13"]
[EventType "swiss"]
[EventCountry "ITA"]
[SourceTitle "playchess.com"]
[Source "ChessBase"]
[SourceQuality "1"]
[TimeControl "40/5400+30:1800+30"]

1. e4 {[%emt 0:00:02]} e5 {[%emt 0:00:07]} 2. Nf3 {[%emt 0:00:09]} Nc6 {[%emt 0:00:06]} 3. Bc4 {[%emt 0:00:13]} Bc5 {[%emt 0:00:10]} 4. O-O {[%emt 0:00:10]} Nf6 {[%emt 0:00:12]} 5. d4 {[%emt 0:00:11]} Bxd4 {[%emt 0:00:21]} 6. Nxd4 {[%emt 0:00:14]} Nxd4 {[%emt 0:00:09]} 7. Bg5 {[%emt 0:00:17]} h6 {[%emt 0:00:36]} 8. Bh4 {[%emt 0:00:08]} d6 {[%emt 0:01:12]} 9. f3 {[%emt 0:14:27]} c6 {[%emt 0:08:41]} 10. c3 {[%emt 0:03:14]} Ne6 {[%emt 0:00:23]} 11. Na3 {[%emt 0:04:15]} Qe7 {[%emt 0:05:57]} 12. Nc2 {[%emt 0:03:13]} O-O {[%emt 0:05:41]} 13. Ne3 {[%emt 0:03:17]} Nf4 {[%emt 0:02:28]} 14. g3 {[%emt 0:05:21]} Nh3+ {[%emt 0:03:33]} 15. Kg2 {[%emt 0:03:10]} Ng5 {[%emt 0:13:52]} 16. g4 {[%emt 0:11:37]} Ne6 {[%emt 0:07:08]} 17. Qc1 {[%emt 0:20:03]} Nf4+ {[%emt 0:03:34]} 18. Kh1 {[%emt 0:00:45]} g5 {[%emt 0:14:44]} 19. Bf2 {[%emt 0:09:37]} d5 {[%emt 0:05:23]} 20. exd5 {[%emt 0:01:31]} N6xd5 {[%emt 0:01:39]} 21. Qe1 {[%emt 0:04:07]} Nxe3 {[%emt 0:07:26]} 22. Qxe3 {[%emt 0:01:53]} Kg7 {[%emt 0:01:05]} 23. Qe4 {[%emt 0:03:10]} f5 {[%emt 0:05:31]} 24. gxf5 {[%emt 0:00:51]} Bxf5 {[%emt 0:00:09]} 25. Qe3 {[%emt 0:01:06]} Rfe8 {[%emt 0:02:15]} 26. h4 {[%emt 0:01:33]} Kh7 {[%emt 0:03:09]} 27. Qe1 {[%emt 0:04:01]} e4 {[%emt 0:02:59]} 28. Qe3 {[%emt 0:03:08]} exf3 {[%emt 0:01:12]} 29. Qd2 {[%emt 0:02:18]} Rad8 {[%emt 0:01:15]} 30. Qc1 {[%emt 0:00:38]} Qe4 {[%emt 0:02:30]} *

[Event "FIDE WYCC Girls U18 2023"]
[Site "Montesilvano"]
[Date "2023.11.20"]
[Round "7.35"]
[White "Monteiro, Helen Ramazzotte"]
[Black "Lunar Villaman, Sofia"]
[Result "1/2-1/2"]
[ECO "A16"]
[WhiteElo "1447"]
[BlackElo "1305"]
[Annotator "NA COMBH"]
[PlyCount "125"]
[EventDate "2023.11.13"]
[EventType "swiss"]
[EventCountry "ITA"]
[SourceTitle "playchess.com"]
[Source "ChessBase"]
[SourceQuality "1"]
[TimeControl "40/5400+30:1800+30"]

1. c4 {[%emt 0:00:08]} Nf6 {[%emt 0:00:08]} 2. Nc3 {[%emt 0:00:28]} g6 {[%emt 0:00:06]} 3. g3 {[%emt 0:00:45]} Bg7 {[%emt 0:00:07]} 4. Bg2 {[%emt 0:00:37]} O-O {[%emt 0:03:54]} 5. Nf3 {[%emt 0:00:31]} d6 {[%emt 0:00:20]} 6. O-O {[%emt 0:00:35]} a6 {[%emt 0:01:03]} 7. d3 {[%emt 0:00:59]} c5 {[%emt 0:00:43]} 8. Rb1 {[%emt 0:01:53]} Nc6 {[%emt 0:00:42]} 9. a3 {[%emt 0:01:23]} Ne8 {[%emt 0:03:18]} 10. Bd2 Nc7 {[%emt 0:24:15]} 11. Na4 {[%emt 0:11:53]} b5 {[%emt 0:07:47]} 12. Nb6 {[%emt 0:04:28]} Rb8 {[%emt 0:00:40]} 13. Nxc8 {[%emt 0:00:41]} Qxc8 {[%emt 0:01:33]} 14. Qc2 {[%emt 0:10:42]} Qd7 {[%emt 0:23:57]} 15. b4 {[%emt 0:06:37]} cxb4 {[%emt 0:12:33]} 16. cxb5 {[%emt 0:02:31]} Nxb5 {[%emt 0:01:59]} 17. Qa4 {[%emt 0:25:16]} Nxa3 {[%emt 0:08:30]} 18. Rxb4 {[%emt 0:06:37]} Rxb4 {[%emt 0:02:45]} 19. Bxb4 {[%emt 0:00:09]} Nb5 {[%emt 0:00:08]} 20. Bd2 {[%emt 0:02:52]} Nb8 {[%emt 0:02:15]} 21. e3 {[%emt 0:04:10]} Nd4 {[%emt 0:01:57]} 22. Qa2 {[%emt 0:03:21]} Nxf3+ {[%emt 0:00:32]} 23. Bxf3 {[%emt 0:00:07]} Qf5 {[%emt 0:01:38]} 24. Be4 {[%emt 0:01:00]} Qd7 {[%emt 0:00:47]} 25. Rb1 {[%emt 0:00:29]} Rc8 {[%emt 0:00:40]} 26. Bb7 {[%emt 0:01:13]} Rc7 {[%emt 0:00:29]} 27. Bxa6 {[%emt 0:01:34]} Nxa6 {[%emt 0:00:18]} 28. Qxa6 {[%emt 0:00:07]} Ra7 {[%emt 0:00:20]} 29. Rb8+ {[%emt 0:01:33]} Bf8 {[%emt 0:00:15]} 30. e4 {[%emt 0:04:37]} h5 {[%emt 0:00:32]} 31. Qc8 {[%emt 0:01:37]} Qxc8 {[%emt 0:00:26]} 32. Rxc8 {[%emt 0:00:02]} Kg7 {[%emt 0:00:34]} 33. Bc3+ {[%emt 0:02:08]} f6 {[%emt 0:00:24]} 34. Kg2 {[%emt 0:02:01]} Kf7 {[%emt 0:00:15]} 35. Bd2 {[%emt 0:01:45]} Ra3 {[%emt 0:00:30]} 36. Rc3 {[%emt 0:00:21]} Ra7 {[%emt 0:00:19]} 37. Be3 {[%emt 0:01:41]} Rb7 {[%emt 0:00:18]} 38. h3 {[%emt 0:01:46]} Bg7 {[%emt 0:00:36]} 39. Ra3 {[%emt 0:00:31]} Bf8 {[%emt 0:00:22]} 40. h4 {[%emt 0:00:00]} Bg7 {[%emt 0:00:00]} 41. Kh3 {[%emt 0:02:43]} Rb1 {[%emt 0:09:31]} 42. Ra7 {[%emt 0:04:54]} Rh1+ {[%emt 0:03:10]} 43. Kg2 {[%emt 0:00:09]} Rd1 {[%emt 0:00:06]} 44. d4 {[%emt 0:00:07]} Rb1 {[%emt 0:03:13]} 45. Bf4 {[%emt 0:00:46]} Kf8 {[%emt 0:02:18]} 46. Kf3 {[%emt 0:02:14]} Rb3+ {[%emt 0:01:23]} 47. Be3 {[%emt 0:04:21]} Bh6 {[%emt 0:03:13]} 48. Ra5 {[%emt 0:00:16]} Kf7 {[%emt 0:01:19]} 49. Ke2 {[%emt 0:02:40]} Bxe3 {[%emt 0:00:34]} 50. fxe3 {[%emt 0:00:07]} Rb2+ {[%emt 0:00:37]} 51. Kf3 {[%emt 0:00:17]} Rb1 {[%emt 0:00:40]} 52. e5 {[%emt 0:01:40]} fxe5 {[%emt 0:03:53]} 53. dxe5 {[%emt 0:00:16]} Rf1+ {[%emt 0:00:29]} 54. Ke4 {[%emt 0:09:12]} Rf5 {[%emt 0:01:58]} 55. Kd4 {[%emt 0:05:44]} Ke6 {[%emt 0:01:56]} 56. e4 {[%emt 0:02:13]} Rxe5 57. Rxe5+ dxe5+ 58. Kc5 Kf6 59. Kd5 e6+ 60. Kd6 Kf7 61. Kd7 Kf6 62. Ke8 g5 63. Kd7 1/2-1/2

[Event "FIDE WYCC Girls U18 2023"]
[Site "Montesilvano"]
[Date "2023.11.21"]
[Round "8.1"]
[White "Hrebenshchykova, Yelyzaveta"]
[Black "Luong, Hoang Tu Linh"]
[Result "0-1"]
[ECO "E01"]
[WhiteElo "2292"]
[BlackElo "1887"]
[Annotator "RC"]
[PlyCount "108"]
[EventDate "2023.11.13"]
[EventType "swiss"]
[EventCountry "ITA"]
[SourceTitle "playchess.com"]
[Source "ChessBase"]
[SourceQuality "1"]
[TimeControl "40/5400+30:1800+30"]

1. d4 {[%emt 0:00:02]} Nf6 {[%emt 0:00:29]} 2. c4 {[%emt 0:00:05]} e6 {[%emt 0:00:17]} 3. g3 {[%emt 0:00:19]} d5 {[%emt 0:01:21]} 4. Bg2 {[%emt 0:04:04]} Bb4+ {[%emt 0:04:25]} 5. Nd2 {[%emt 0:01:14]} O-O {[%emt 0:01:10]} 6. Ngf3 {[%emt 0:00:12]} c6 {[%emt 0:06:21]} 7. O-O {[%emt 0:06:49]} Nbd7 {[%emt 0:03:12]} 8. Qc2 {[%emt 0:25:07]} Re8 {[%emt 0:09:16]} 9. Rd1 {[%emt 0:06:37]} Qe7 {[%emt 0:06:03]} 10. e4 {[%emt 0:09:45]} Bxd2 {[%emt 0:40:05]} 11. Nxd2 {[%emt 0:00:27]} dxe4 {[%emt 0:00:58]} 12. Nxe4 {[%emt 0:09:01]} h6 {[%emt 0:02:53]} 13. Bd2 {[%emt 0:16:12]} Nxe4 {[%emt 0:09:42]} 14. Qxe4 {[%emt 0:00:11]} Nf6 {[%emt 0:00:18]} 15. Qe5 {[%emt 0:01:17]} Ng4 {[%emt 0:03:51]} 16. Qe2 {[%emt 0:00:51]} Nf6 {[%emt 0:01:17]} 17. Bc3 {[%emt 0:01:10]} Qc7 {[%emt 0:00:45]} 18. Qf3 {[%emt 0:02:38]} e5 {[%emt 0:03:10]} 19. h3 {[%emt 0:02:46]} e4 {[%emt 0:00:39]} 20. Qe3 {[%emt 0:00:20]} Bf5 {[%emt 0:01:09]} 21. d5 {[%emt 0:02:31]} cxd5 {[%emt 0:00:00]} 22. Bxf6 {[%emt 0:02:18]} gxf6 {[%emt 0:00:25]} 23. Rxd5 {[%emt 0:02:40]} Bg6 {[%emt 0:00:35]} 24. b3 {[%emt 0:01:59]} Kg7 {[%emt 0:01:20]} 25. Rad1 {[%emt 0:00:16]} Re6 {[%emt 0:01:52]} 26. h4 {[%emt 0:01:03]} h5 {[%emt 0:00:32]} 27. a4 {[%emt 0:02:45]} Rae8 {[%emt 0:00:57]} 28. R1d4 {[%emt 0:01:08]} a6 {[%emt 0:00:52]} 29. a5 {[%emt 0:00:17]} Qe7 {[%emt 0:00:22]} 30. Bh3 {[%emt 0:00:44]} Re5 {[%emt 0:00:33]} 31. Rxe5 {[%emt 0:00:16]} Qxe5 {[%emt 0:00:19]} 32. Rd5 {[%emt 0:00:04]} Qa1+ {[%emt 0:00:47]} 33. Kh2 {[%emt 0:00:15]} Re5 {[%emt 0:00:31]} 34. Rd7 {[%emt 0:01:31]} Rxa5 {[%emt 0:00:24]} 35. Rxb7 {[%emt 0:00:03]} Qd1 {[%emt 0:00:28]} 36. Rd7 {[%emt 0:00:18]} Qb1 {[%emt 0:00:27]} 37. Bg2 {[%emt 0:00:57]} Ra1 {[%emt 0:00:17]} 38. g4 {[%emt 0:00:04]} hxg4 {[%emt 0:00:48]} 39. Rd8 {[%emt 0:00:11]} Qc1 {[%emt 0:00:36]} 40. Qxc1 {[%emt 0:00:00]} Rxc1 {[%emt 0:00:00]} 41. Rd5 {[%emt 0:11:12]} Rc3 {[%emt 0:03:49]} 42. h5 {[%emt 0:01:05]} Bh7 {[%emt 0:00:36]} 43. Rd6 {[%emt 0:02:17]} Rxb3 {[%emt 0:01:46]} 44. Rxa6 {[%emt 0:01:15]} Rc3 {[%emt 0:02:24]} 45. Rc6 {[%emt 0:06:20]} f5 {[%emt 0:05:11]} 46. h6+ {[%emt 0:00:56]} Kf8 {[%emt 0:02:15]} 47. Rc8+ {[%emt 0:04:04]} Ke7 {[%emt 0:00:02]} 48. Rh8 {[%emt 0:00:05]} Bg6 {[%emt 0:00:09]} 49. h7 {[%emt 0:01:30]} Kf6 {[%emt 0:00:18]} 50. Bf1 {[%emt 0:02:55]} Kg7 {[%emt 0:00:52]} 51. Rc8 {[%emt 0:02:41]} Bxh7 {[%emt 0:00:26]} 52. c5 {[%emt 0:00:04]} f4 {[%emt 0:00:40]} 53. c6 {[%emt 0:00:46]} Bf5 {[%emt 0:00:45]} 54. Rc7 {[%emt 0:00:05]} Rc2 {[%emt 0:00:25]} 0-1

[Event "FIDE WYCC Girls U18 2023"]
[Site "Montesilvano"]
[Date "2023.11.21"]
[Round "8.2"]
[White "Kurmangaliyeva, Liya"]
[Black "Trifoi, Mihaela-Ioana"]
[Result "1-0"]
[ECO "D30"]
[WhiteElo "2236"]
[BlackElo "2021"]
[Annotator "RC"]
[PlyCount "87"]
[EventDate "2023.11.13"]
[EventType "swiss"]
[EventCountry "ITA"]
[SourceTitle "playchess.com"]
[Source "ChessBase"]
[SourceQuality "1"]
[TimeControl "40/5400+30:1800+30"]

1. d4 {[%emt 0:00:19]} d5 {[%emt 0:00:07]} 2. c4 {[%emt 0:00:11]} e6 {[%emt 0:00:06]} 3. Nf3 {[%emt 0:00:12]} Nf6 {[%emt 0:00:08]} 4. g3 {[%emt 0:00:10]} Bb4+ {[%emt 0:00:27]} 5. Nbd2 {[%emt 0:02:27]} O-O {[%emt 0:00:12]} 6. Bg2 {[%emt 0:00:05]} dxc4 {[%emt 0:06:01]} 7. O-O {[%emt 0:00:07]} c3 {[%emt 0:16:21]} 8. Nb3 {[%emt 0:15:53]} a5 {[%emt 0:08:07]} 9. a3 {[%emt 0:13:10]} cxb2 {[%emt 0:00:09]} 10. Bxb2 {[%emt 0:00:04]} Be7 {[%emt 0:00:05]} 11. Qc2 {[%emt 0:00:03]} b6 {[%emt 0:02:10]} 12. Rac1 {[%emt 0:07:13]} Ra7 {[%emt 0:00:33]} 13. Rfd1 {[%emt 0:01:54]} h6 {[%emt 0:04:33]} 14. Ne5 {[%emt 0:04:11]} Qe8 {[%emt 0:14:26]} 15. e4 {[%emt 0:02:32]} Nfd7 {[%emt 0:04:27]} 16. Ng4 {[%emt 0:10:09]} Nf6 {[%emt 0:09:06]} 17. Ne3 {[%emt 0:03:49]} a4 {[%emt 0:04:29]} 18. Nd2 {[%emt 0:00:22]} c6 {[%emt 0:00:22]} 19. Ndc4 {[%emt 0:11:08]} b5 {[%emt 0:00:45]} 20. Ne5 {[%emt 0:00:06]} Bb7 {[%emt 0:00:30]} 21. Nd3 {[%emt 0:00:10]} Na6 {[%emt 0:00:58]} 22. f4 {[%emt 0:03:10]} b4 {[%emt 0:02:23]} 23. Qxa4 {[%emt 0:12:36]} Qa8 {[%emt 0:08:24]} 24. Qb3 {[%emt 0:05:01]} bxa3 {[%emt 0:00:52]} 25. Bxa3 {[%emt 0:00:34]} Bxa3 {[%emt 0:00:15]} 26. Qxa3 {[%emt 0:00:02]} Nc7 {[%emt 0:01:10]} 27. Qb2 {[%emt 0:03:11]} Ra2 {[%emt 0:01:46]} 28. Qb6 {[%emt 0:00:54]} Nb5 {[%emt 0:01:20]} 29. Nc5 {[%emt 0:01:06]} Ba6 {[%emt 0:01:53]} 30. Nxa6 {[%emt 0:03:31]} Rxa6 {[%emt 0:02:02]} 31. Qc5 {[%emt 0:00:03]} Nd7 {[%emt 0:01:14]} 32. Qe7 {[%emt 0:00:59]} Ra7 {[%emt 0:00:52]} 33. f5 {[%emt 0:00:39]} Re8 {[%emt 0:02:22]} 34. Qh4 {[%emt 0:00:03]} Ra3 {[%emt 0:01:07]} 35. Nc4 {[%emt 0:00:47]} Rc3 {[%emt 0:00:24]} 36. Ra1 {[%emt 0:00:57]} Qb8 {[%emt 0:00:31]} 37. fxe6 {[%emt 0:00:31]} Rxe6 {[%emt 0:00:27]} 38. Bf1 {[%emt 0:00:22]} Qe8 {[%emt 0:03:26]} 39. e5 {[%emt 0:00:13]} Nf8 {[%emt 0:01:32]} 40. Nb6 {[%emt 0:00:00]} c5 {[%emt 0:00:00]} 41. Ra8 {[%emt 0:09:42]} Qc6 {[%emt 0:06:32]} 42. d5 {[%emt 0:07:06]} Qxb6 {[%emt 0:00:46]} 43. dxe6 {[%emt 0:00:13]} Nd4 {[%emt 0:03:13]} 44. exf7+ {[%emt 0:01:09]} 1-0

[Event "FIDE WYCC Girls U18 2023"]
[Site "Montesilvano"]
[Date "2023.11.21"]
[Round "8.3"]
[White "Nguyen, Thien Ngan"]
[Black "Zhurova, Anna"]
[Result "0-1"]
[ECO "C00"]
[WhiteElo "1891"]
[BlackElo "2149"]
[Annotator "NA RC"]
[PlyCount "112"]
[EventDate "2023.11.13"]
[EventType "swiss"]
[EventCountry "ITA"]
[SourceTitle "playchess.com"]
[Source "ChessBase"]
[SourceQuality "1"]
[TimeControl "40/5400+30:1800+30"]

1. e4 {[%emt 0:00:05]} e6 {[%emt 0:00:06]} 2. d4 {[%emt 0:00:08]} d5 {[%emt 0:00:26]} 3. Bd3 {[%emt 0:00:09]} dxe4 {[%emt 0:00:48]} 4. Bxe4 {[%emt 0:00:07]} Nf6 {[%emt 0:00:06]} 5. Bf3 {[%emt 0:00:08]} c5 {[%emt 0:00:06]} 6. Ne2 {[%emt 0:00:45]} Be7 {[%emt 0:00:08]} 7. Be3 {[%emt 0:00:54]} O-O {[%emt 0:01:26]} 8. O-O {[%emt 0:03:35]} cxd4 {[%emt 0:00:16]} 9. Nxd4 {[%emt 0:06:06]} e5 {[%emt 0:00:17]} 10. Nb5 {[%emt 0:07:27]} Qa5 {[%emt 0:03:09]} 11. c4 {[%emt 0:07:02]} e4 {[%emt 0:07:00]} 12. Be2 {[%emt 0:03:35]} Nc6 {[%emt 0:01:39]} 13. Nd2 {[%emt 0:07:01]} Bf5 {[%emt 0:04:16]} 14. Nb3 {[%emt 0:09:44]} Qd8 {[%emt 0:00:51]} 15. N3d4 {[%emt 0:06:35]} Nxd4 {[%emt 0:01:32]} 16. Nxd4 {[%emt 0:00:58]} Bg6 {[%emt 0:04:15]} 17. f4 {[%emt 0:11:04]} exf3 {[%emt 0:01:05]} 18. Bxf3 {[%emt 0:00:46]} Bc5 {[%emt 0:07:24]} 19. a3 {[%emt 0:18:34]} Re8 {[%emt 0:05:58]} 20. Bf2 {[%emt 0:01:13]} Ne4 {[%emt 0:00:45]} 21. Bxe4 {[%emt 0:02:59]} Rxe4 {[%emt 0:01:34]} 22. Nb3 {[%emt 0:03:55]} Bxf2+ {[%emt 0:03:42]} 23. Rxf2 {[%emt 0:00:08]} Rxc4 {[%emt 0:00:41]} 24. Qxd8+ {[%emt 0:04:21]} Rxd8 {[%emt 0:00:05]} 25. Na5 {[%emt 0:00:18]} Rc7 {[%emt 0:00:15]} 26. Re1 {[%emt 0:00:30]} f6 {[%emt 0:03:45]} 27. h3 {[%emt 0:01:55]} Rd3 {[%emt 0:02:25]} 28. Rf4 {[%emt 0:01:59]} Bf7 {[%emt 0:02:27]} 29. Ree4 {[%emt 0:01:26]} b6 {[%emt 0:04:09]} 30. Nc4 {[%emt 0:00:01]} g5 {[%emt 0:00:22]} 31. Rxf6 {[%emt 0:01:38]} Bxc4 {[%emt 0:00:31]} 32. Rf5 {[%emt 0:00:39]} Rd5 {[%emt 0:01:35]} 33. Re8+ {[%emt 0:00:11]} Kg7 {[%emt 0:00:06]} 34. Rxd5 {[%emt 0:00:39]} Bxd5 {[%emt 0:00:05]} 35. Re5 {[%emt 0:00:05]} Bf7 {[%emt 0:00:40]} 36. Rxg5+ {[%emt 0:00:02]} Kf6 {[%emt 0:00:10]} 37. Rg3 {[%emt 0:01:06]} Rc1+ {[%emt 0:00:24]} 38. Kh2 {[%emt 0:00:06]} Rb1 {[%emt 0:00:05]} 39. Rf3+ {[%emt 0:00:19]} Ke7 {[%emt 0:00:21]} 40. Rf2 {[%emt 0:00:00]} Bg6 {[%emt 0:00:00]} 41. Kg3 {[%emt 0:03:43]} Kd6 {[%emt 0:00:41]} 42. h4 {[%emt 0:00:53]} Ke5 {[%emt 0:01:44]} 43. Kg4 {[%emt 0:00:50]} Kd4 {[%emt 0:00:40]} 44. Kg5 {[%emt 0:00:27]} a5 {[%emt 0:01:14]} 45. g4 {[%emt 0:00:30]} Ke3 {[%emt 0:02:18]} 46. Rh2 {[%emt 0:02:59]} a4 {[%emt 0:01:18]} 47. Kh6 {[%emt 0:02:03]} Rc1 {[%emt 0:04:28]} 48. b3 {[%emt 0:05:26]} Kf4 {[%emt 0:03:21]} 49. bxa4 {[%emt 0:00:40]} Kxg4 {[%emt 0:00:47]} 50. Rb2 {[%emt 0:10:41]} Rb1 {[%emt 0:03:55]} 51. Rd2 {[%emt 0:04:23]} Kxh4 {[%emt 0:00:10]} 52. a5 {[%emt 0:00:22]} bxa5 {[%emt 0:01:27]} 53. Rd5 {[%emt 0:00:12]} Rb6 {[%emt 0:00:20]} 54. Rd4+ {[%emt 0:01:15]} Kg3 {[%emt 0:00:49]} 55. Rd8 {[%emt 0:00:30]} Be4+ {[%emt 0:00:45]} 56. Kh5 {[%emt 0:00:20]} Rg6 {[%emt 0:00:56]} 0-1

[Event "FIDE WYCC Girls U18 2023"]
[Site "Montesilvano"]
[Date "2023.11.21"]
[Round "8.4"]
[White "Mihelic, Vesna"]
[Black "Nguyen Hong Nhung"]
[Result "0-1"]
[ECO "B40"]
[WhiteElo "2102"]
[BlackElo "1975"]
[Annotator "NA RC"]
[PlyCount "50"]
[EventDate "2023.11.13"]
[EventType "swiss"]
[EventCountry "ITA"]
[SourceTitle "playchess.com"]
[Source "ChessBase"]
[SourceQuality "1"]
[TimeControl "40/5400+30:1800+30"]

1. e4 {[%emt 0:00:02]} c5 {[%emt 0:00:07]} 2. Nf3 {[%emt 0:00:05]} e6 {[%emt 0:00:08]} 3. c3 {[%emt 0:00:09]} d5 {[%emt 0:00:20]} 4. exd5 {[%emt 0:00:14]} Qxd5 {[%emt 0:00:06]} 5. Na3 {[%emt 0:00:14]} a6 {[%emt 0:00:29]} 6. Bc4 {[%emt 0:01:17]} Qc6 {[%emt 0:04:03]} 7. O-O {[%emt 0:06:49]} Nf6 {[%emt 0:13:43]} 8. Re1 {[%emt 0:13:12]} Bd6 {[%emt 0:04:22]} 9. d4 {[%emt 0:02:44]} cxd4 {[%emt 0:25:18]} 10. Nxd4 {[%emt 0:00:19]} Qc7 {[%emt 0:02:05]} 11. Bb5+ {[%emt 0:40:04]} Bd7 {[%emt 0:01:50]} 12. Bxd7+ {[%emt 0:03:38]} Nbxd7 {[%emt 0:00:45]} 13. Nxe6 {[%emt 0:09:24]} Bxh2+ {[%emt 0:12:37]} 14. Kh1 {[%emt 0:00:01]} fxe6 {[%emt 0:00:13]} 15. Rxe6+ {[%emt 0:01:03]} Kf7 {[%emt 0:00:34]} 16. Re1 {[%emt 0:03:22]} Rhe8 {[%emt 0:03:38]} 17. Be3 {[%emt 0:06:29]} Bd6 {[%emt 0:04:27]} 18. Qb3+ {[%emt 0:01:02]} Kf8 {[%emt 0:00:12]} 19. Nc4 {[%emt 0:02:03]} Bc5 {[%emt 0:00:47]} 20. Qd1 {[%emt 0:04:29]} Bxe3 {[%emt 0:00:40]} 21. Nxe3 {[%emt 0:00:02]} Kg8 {[%emt 0:00:54]} 22. Qf3 {[%emt 0:00:38]} Ne5 {[%emt 0:02:16]} 23. Qg3 {[%emt 0:00:37]} Qf7 {[%emt 0:00:22]} 24. Kg1 {[%emt 0:01:02]} Ne4 {[%emt 0:00:41]} 25. Qh4 {[%emt 0:00:41]} Ng6 {[%emt 0:00:17]} 0-1

[Event "FIDE WYCC Girls U18 2023"]
[Site "Montesilvano"]
[Date "2023.11.21"]
[Round "8.5"]
[White "Naymanova, Patricie"]
[Black "Petricenco, Ana"]
[Result "1-0"]
[ECO "D00"]
[WhiteElo "2083"]
[BlackElo "1902"]
[Annotator "NA RC"]
[PlyCount "79"]
[EventDate "2023.11.13"]
[EventType "swiss"]
[EventCountry "ITA"]
[SourceTitle "playchess.com"]
[Source "ChessBase"]
[SourceQuality "1"]
[TimeControl "40/5400+30:1800+30"]

1. d4 {[%emt 0:00:02]} d5 {[%emt 0:00:09]} 2. Nc3 {[%emt 0:00:11]} Nf6 {[%emt 0:00:18]} 3. Bf4 {[%emt 0:00:05]} c5 {[%emt 0:03:15]} 4. e3 {[%emt 0:00:04]} a6 {[%emt 0:03:49]} 5. dxc5 {[%emt 0:00:42]} Nc6 {[%emt 0:02:28]} 6. a3 {[%emt 0:03:10]} h6 {[%emt 0:15:00]} 7. Nf3 {[%emt 0:00:36]} Bg4 {[%emt 0:02:56]} 8. Qd2 {[%emt 0:08:10]} e6 {[%emt 0:06:27]} 9. b4 {[%emt 0:06:02]} Bxf3 {[%emt 0:01:49]} 10. gxf3 {[%emt 0:00:04]} Nh5 {[%emt 0:04:58]} 11. Bg3 {[%emt 0:12:15]} Nxg3 {[%emt 0:01:03]} 12. fxg3 {[%emt 0:01:16]} Be7 {[%emt 0:05:21]} 13. Be2 {[%emt 0:10:54]} O-O {[%emt 0:04:16]} 14. Na4 {[%emt 0:02:53]} Qc7 {[%emt 0:05:44]} 15. O-O {[%emt 0:01:43]} Rad8 {[%emt 0:02:41]} 16. Rab1 {[%emt 0:03:58]} Ne5 {[%emt 0:06:21]} 17. Nb6 {[%emt 0:12:25]} Nd7 {[%emt 0:01:25]} 18. Nxd7 {[%emt 0:01:49]} Qxd7 {[%emt 0:02:48]} 19. Rfd1 {[%emt 0:00:20]} Bf6 {[%emt 0:02:14]} 20. f4 {[%emt 0:02:43]} d4 {[%emt 0:04:53]} 21. c3 {[%emt 0:05:18]} d3 {[%emt 0:01:45]} 22. Bxd3 {[%emt 0:00:22]} Qa4 {[%emt 0:00:10]} 23. Qb2 {[%emt 0:00:55]} e5 {[%emt 0:00:40]} 24. e4 {[%emt 0:04:43]} exf4 {[%emt 0:05:24]} 25. gxf4 {[%emt 0:00:01]} Qc6 {[%emt 0:00:22]} 26. e5 {[%emt 0:01:22]} Bh4 {[%emt 0:04:51]} 27. Qg2 {[%emt 0:02:27]} Qe6 {[%emt 0:00:49]} 28. h3 {[%emt 0:05:45]} b6 {[%emt 0:06:23]} 29. Qe4 {[%emt 0:03:52]} g6 {[%emt 0:05:38]} 30. f5 {[%emt 0:00:09]} Qxf5 {[%emt 0:00:03]} 31. Qxf5 {[%emt 0:00:04]} gxf5 {[%emt 0:00:04]} 32. Bxf5 {[%emt 0:00:19]} bxc5 {[%emt 0:00:24]} 33. bxc5 {[%emt 0:01:06]} Bg3 34. e6 {[%emt 0:00:04]} fxe6 {[%emt 0:01:27]} 35. Bxe6+ {[%emt 0:01:07]} Kg7 {[%emt 0:00:10]} 36. Kg2 {[%emt 0:00:59]} Be5 37. c6 Rde8 {[%emt 0:01:17]} 38. Bd7 {[%emt 0:01:01]} Re7 {[%emt 0:01:20]} 39. Re1 {[%emt 0:02:09]} Rff7 {[%emt 0:00:44]} 40. Re4 {[%emt 0:00:00]} 1-0